fUST/lending_fUST_20250614
["ID","MTS","AMOUNT","RATE_DAILY","PERIOD"]
[365745991,1749869442496,-159.72228297,0.0002368,4]
[365745992,1749869442505,-159.72228297,0.0002368,4]
[365745993,1749869442514,-159.72228297,0.0002368,4]
[365745994,1749869442523,-159.72228297,0.0002368,4]
[365745995,1749869442533,-159.72228297,0.0002368,4]
[365745996,1749869442542,-159.72228297,0.0002368,4]
[365745997,1749869442551,-159.72228297,0.0002368,4]
[365745998,1749869442561,-200.0,0.0002369,2]
[365745999,1749869442570,-2788.0,0.000237,2]
[365746000,1749869442579,-151.0,0.000237,7]
[365746001,1749869442589,-151.0,0.000237,6]
[365746002,1749869442599,-151.0,0.000237,7]
[365746003,1749869442610,-85507.04,0.000237,7]
[365746004,1749869442620,-151.0,0.000237,9]
[365746005,1749869442629,-12533.30537164,0.000237,7]
[365746006,1749869442638,-160.0,0.000237,7]
[365746007,1749869442647,-159.72,0.000237,4]
[365746008,1749869442657,-213.28201367,0.000237,7]
[365746009,1749869442666,-215.0738,0.00023713,2]
[365746010,1749869442675,-1562.92558176,0.00023762,9]
[365746011,1749869442684,-500.0,0.00023773,2]
[365746012,1749869442693,-500.0,0.00023773,2]
[365746013,1749869442704,-502.24838688,0.00023773,2]
[365746014,1749869442713,-500.14996127,0.00023773,2]
[365746015,1749869442722,-500.0,0.00023773,2]
[365746016,1749869442732,-500.0,0.00023773,2]
[365746017,1749869442742,-500.0,0.00023773,2]
[365746018,1749869442754,-500.98830008,0.00023773,2]
[365746019,1749869442763,-514.33,0.00023773,2]
[365746020,1749869442774,-500.0,0.00023773,2]
[365746021,1749869442784,-501.05540923,0.00023773,2]
[365746022,1749869442794,-500.0,0.00023773,2]
[365746023,1749869442802,-501.18193787,0.00023773,2]
[365746024,1749869442813,-500.0,0.00023773,2]
[365746025,1749869442822,-500.0,0.00023773,2]
[365746026,1749869442832,-151.99757932,0.00023773,2]
[365746027,1749869442841,-500.0,0.00023773,2]
[365746028,1749869442851,-504.81255339,0.00023773,2]
[365746030,1749869442860,-500.0,0.00023773,2]
[365746032,1749869442869,-500.0,0.00023773,2]
[365746034,1749869442878,-500.0,0.00023773,2]
[365746036,1749869442887,-501.41379653,0.00023773,2]
[365746038,1749869442896,-600.0,0.00023773,2]
[365746040,1749869442906,-500.0,0.00023773,2]
[365746042,1749869442915,-501.36108504,0.00023773,2]
[365746044,1749869442924,-501.03395832,0.00023773,2]
[365746046,1749869442933,-500.0,0.00023773,2]
[365746048,1749869442942,-513.4045382,0.00023773,2]
[365746050,1749869442953,-500.0,0.00023773,2]
[365746052,1749869442962,-503.95759665,0.00023773,2]
[365746054,1749869442971,-28974.77339139,0.0002378,2]
[365746056,1749869442980,-55441.61003797,0.0002378,2]
[365746058,1749869442989,-7346.62439863,0.0002378,5]
[365746060,1749869442998,-342457.89168358,0.0002378,5]
[365746063,1749869443015,-15959.74003675,0.0002378,5]
[365746065,1749869443026,-403.16661717,0.0002378,5]
[365746081,1749869443172,-460.0,0.00021379,4]
[365746083,1749869443182,-165.99447671,0.00021653,4]
[365746085,1749869443191,-160.0,0.00023212,2]
[365746087,1749869443201,-160.0,0.00023212,2]
[365746089,1749869443211,-150.0,0.00023437,2]
[365746091,1749869443220,-20460.79945203,0.0002378,5]
[365746319,1749869446139,-369.77520796,0.0002168,2]
[365746321,1749869446148,-229.82479369,0.00023212,2]
[365746323,1749869446157,-368.65206835,0.0002378,5]
[365746327,1749869446192,-21077.87097319,0.0002378,5]
[365746493,1749869541481,162.333775,0.00013699,2]
[365746494,1749869549137,5000.0,0.0002,2]
[365746495,1749869565734,174.45828074,0.0002,2]
[365746498,1749869610203,5000.0,0.0002,2]
[365746501,1749869668895,5000.0,0.0002,2]
[365746503,1749869743036,619.98164446,0.0002,2]
[365746504,1749869743060,4380.01835554,0.0002,2]
[365746506,1749869806735,5000.0,0.0002,2]
[365746507,1749869827247,2342.01,0.00024939,60]
[365746511,1749869986494,236.0,0.0002,2]
[365746516,1749870233434,984.09991628,0.0002494,120]
[365746518,1749870305698,5000.0,0.0002,2]
[365746520,1749870321691,5000.0,0.0002,2]
[365746521,1749870348962,246.51680531,0.000189,2]
[365746522,1749870352379,3337.50923915,0.0002,2]
[365746523,1749870352402,1662.49076085,0.0002,2]
[365746525,1749870367780,5000.0,0.0002,2]
[365746526,1749870368428,-185.55306134,0.00020053,2]
[365746527,1749870414365,5000.0,0.0002,2]
[365746528,1749870423063,-153.17744513,0.00020198,2]
[365746529,1749870423087,-30.91255487,0.00020268,2]
[365746530,1749870425089,-278.34254736,0.00020268,2]
[365746531,1749870425110,-1569.4592273,0.0002033,2]
[365746532,1749870425737,-226.35468164,0.0002033,2]
[365746534,1749870428082,-420.81609546,0.0002033,2]
[365746535,1749870428104,-300.0,0.00020671,2]
[365746536,1749870428125,-300.0,0.00020671,2]
[365746537,1749870428144,-300.0,0.00020672,2]
[365746538,1749870428164,-300.0,0.00020672,2]
[365746539,1749870428183,-300.0,0.00020672,2]
[365746540,1749870428204,-1200.0,0.00020672,2]
[365746541,1749870428224,-2791.89074994,0.00020673,2]
[365746542,1749870447203,-5000.0,0.00020466,2]
[365746543,1749870447223,-195.7999762,0.00020572,2]
[365746544,1749870447243,-1304.22603079,0.00020673,2]
[365746545,1749870485078,57089.94511315,0.0002494,120]
[365746550,1749870530558,162.390929,0.00013699,2]
[365746551,1749870544149,1859.572029,0.000245,120]
[365746553,1749870553106,-226.35468164,0.00020466,2]
[365746554,1749870553128,-4728.4134249,0.00020673,2]
[365746555,1749870556147,-1080.597,0.00020673,2]
[365746558,1749870632569,-5000.0,0.00020466,2]
[365746559,1749870632579,-94.87279437,0.00020673,2]
[365746560,1749870632589,-134.79735447,0.00020796,2]
[365746599,1749870638304,-435.96217067,0.00020261,2]
[365746600,1749870638315,-40.07157233,0.00020796,2]
[365746601,1749870638325,-296.3786408,0.00021089,2]
[365746602,1749870638334,-1791.14,0.00021365,2]
[365746603,1749870638344,-300.0,0.00021377,2]
[365746604,1749870638353,-460.0,0.00021378,4]
[365746605,1749870638363,-498.71,0.00021378,4]
[365746606,1749870638373,-2477.78,0.00021378,4]
[365746607,1749870638383,-644.23,0.00021378,4]
[365746608,1749870638393,-460.0,0.00021378,4]
[365746609,1749870638403,-460.0,0.00021378,4]
[365746610,1749870638412,-460.0,0.00021378,4]
[365746611,1749870638422,-623.31,0.00021378,4]
[365746612,1749870638432,-460.0,0.00021378,4]
[365746613,1749870638441,-460.0,0.00021378,4]
[365746614,1749870638451,-460.0,0.00021652,4]
[365746615,1749870638460,-498.71,0.00021652,4]
[365746616,1749870638469,-2477.78,0.00021652,4]
[365746617,1749870638479,-644.23,0.00021652,4]
[365746618,1749870638491,-460.0,0.00021652,4]
[365746619,1749870638500,-359.44218787,0.00021652,4]
[365746620,1749870638511,-460.0,0.00021652,4]
[365746621,1749870638520,-623.31,0.00021652,4]
[365746622,1749870638530,-460.0,0.00021652,4]
[365746623,1749870638539,-460.0,0.00021652,4]
[365746624,1749870638549,-1138.21440095,0.000219,6]
[365746625,1749870638559,-401.67,0.00021926,4]
[365746626,1749870638568,-498.71,0.00021926,4]
[365746627,1749870638579,-2477.78,0.00021926,4]
[365746628,1749870638588,-644.23,0.00021926,4]
[365746629,1749870638598,-460.0,0.00021926,4]
[365746630,1749870638613,-460.0,0.00021926,4]
[365746631,1749870638627,-623.31,0.00021926,4]
[365746632,1749870638637,-460.0,0.00021926,4]
[365746633,1749870638651,-460.0,0.00021926,4]
[365746634,1749870638661,-550.5385209,0.00022003,6]
[365746635,1749870638674,-587.67587988,0.00022003,6]
[365746636,1749870638685,-730.5525136,0.00022055,2]
[365746637,1749870638695,-460.0,0.00022106,4]
[365746638,1749870638705,-525.47763592,0.00022106,4]
[365746639,1749870638714,-460.0,0.00022106,4]
[365746640,1749870638725,-460.0,0.00022106,4]
[365746641,1749870638734,-382.09026343,0.00022106,4]
[365746642,1749870638749,-304.86973657,0.00022106,4]
[365746643,1749870638759,-460.0,0.00022106,4]
[365746644,1749870638768,-460.0,0.00022106,4]
[365746645,1749870638778,-460.0,0.00022106,4]
[365746646,1749870638788,-460.0,0.00022106,4]
[365746647,1749870638797,-460.0,0.00022106,4]
[365746648,1749870638806,-460.0,0.00022106,4]
[365746649,1749870638816,-460.0,0.00022106,4]
[365746650,1749870638826,-460.0,0.00022106,4]
[365746651,1749870638835,-460.0,0.00022106,4]
[365746652,1749870638844,-734.18,0.00022106,4]
[365746653,1749870638854,-460.0,0.00022106,4]
[365746654,1749870638863,-460.0,0.00022106,4]
[365746655,1749870638872,-1138.21440078,0.00022107,6]
[365746656,1749870638882,-460.0,0.00022199,4]
[365746657,1749870638891,-460.0,0.00022199,2]
[365746658,1749870638901,-599.67300492,0.00022199,4]
[365746659,1749870638911,-460.0,0.00022199,4]
[365746660,1749870638932,-498.71,0.000222,4]
[365746661,1749870638942,-2477.78,0.000222,4]
[365746662,1749870638952,-644.23,0.000222,4]
[365746663,1749870638962,-460.0,0.000222,4]
[365746664,1749870638972,-460.0,0.000222,4]
[365746665,1749870638981,-623.31,0.000222,4]
[365746666,1749870638993,-460.0,0.000222,4]
[365746667,1749870639003,-460.0,0.000222,4]
[365746668,1749870639013,-168.482,0.00022201,2]
[365746669,1749870639022,-1138.21440078,0.0002221,6]
[365746670,1749870639032,-1138.21440078,0.00022314,7]
[365746671,1749870639042,-460.0,0.0002238,4]
[365746672,1749870639051,-686.96,0.0002238,4]
[365746673,1749870639061,-460.0,0.0002238,4]
[365746674,1749870639070,-460.0,0.0002238,4]
[365746675,1749870639080,-460.0,0.0002238,4]
[365746676,1749870639089,-460.0,0.0002238,4]
[365746677,1749870639101,-608.16950957,0.0002238,4]
[365746678,1749870639111,-460.0,0.0002238,4]
[365746679,1749870639121,-734.18,0.0002238,4]
[365746680,1749870639131,-460.0,0.0002238,4]
[365746681,1749870639140,-460.0,0.0002238,4]
[365746682,1749870639149,-1138.21440078,0.00022417,7]
[365746683,1749870639159,-158.8714084,0.00022466,2]
[365746684,1749870639168,-153.0,0.00022466,2]
[365746685,1749870639177,-176.9937618,0.00022466,2]
[365746686,1749870639187,-573.7859869,0.00022466,2]
[365746687,1749870639196,-158.8714084,0.00022466,2]
[365746688,1749870639205,-158.8714084,0.00022466,2]
[365746689,1749870639214,-176.9937618,0.00022466,2]
[365746690,1749870639223,-153.0,0.00022466,2]
[365746691,1749870639233,-573.7859869,0.00022466,2]
[365746692,1749870639242,-176.9937618,0.00022466,2]
[365746693,1749870639251,-158.8714084,0.00022466,2]
[365746694,1749870639262,-573.7859869,0.00022466,2]
[365746695,1749870639272,-176.9937618,0.00022466,2]
[365746696,1749870639282,-158.8714084,0.00022466,2]
[365746697,1749870639291,-153.0,0.00022466,2]
[365746698,1749870639301,-573.7859869,0.00022466,2]
[365746699,1749870639310,-158.8714084,0.00022466,2]
[365746700,1749870639320,-573.7859869,0.00022466,2]
[365746701,1749870639328,-176.4391475,0.00022466,2]
[365746702,1749870639338,-158.6651865,0.00022466,2]
[365746703,1749870639348,-573.7859869,0.00022466,2]
[365746704,1749870639357,-153.0,0.00022466,2]
[365746705,1749870639367,-500.0,0.00022466,2]
[365746706,1749870639378,-486.84839174,0.00022466,2]
[365746707,1749870639387,-334.05973084,0.00022473,4]
[365746708,1749870639396,-460.0,0.00022473,2]
[365746709,1749870639405,-498.71,0.00022474,4]
[365746710,1749870639415,-2477.78,0.00022474,4]
[365746711,1749870639424,-644.23,0.00022474,4]
[365746712,1749870639434,-460.0,0.00022474,4]
[365746713,1749870639443,-460.0,0.00022474,4]
[365746714,1749870639452,-623.31,0.00022474,4]
[365746715,1749870639462,-460.0,0.00022474,4]
[365746716,1749870639471,-460.0,0.00022474,4]
[365746717,1749870639480,-835.41710878,0.00022475,2]
[365746718,1749870639490,-213.28201367,0.00022475,2]
[365746719,1749870639500,-12533.30537164,0.00022475,2]
[365746720,1749870639510,-160.0,0.00022475,2]
[365746721,1749870639520,-160.0,0.00022475,2]
[365746722,1749870639529,-160.0,0.00022475,2]
[365746723,1749870639539,-160.0,0.00022475,2]
[365746724,1749870639548,-229.82479369,0.00022475,2]
[365746725,1749870639557,-420.0,0.00022493,2]
[365746726,1749870639567,-162.390929,0.00022505,2]
[365746727,1749870639576,-176.9937618,0.00022521,2]
[365746728,1749870639585,-573.7859869,0.00022521,2]
[365746729,1749870639594,-1138.21440078,0.00022521,7]
[365746730,1749870639604,-500.0,0.0002258,2]
[365746731,1749870639613,-207.4,0.00022587,2]
[365746732,1749870639623,-5000.0,0.00022587,2]
[365746733,1749870639632,-500.0,0.00022587,2]
[365746734,1749870639646,-500.0,0.00022587,2]
[365746735,1749870639655,-412.40724399,0.00022587,2]
[365746736,1749870639664,-1138.21440078,0.00022624,7]
[365746737,1749870639674,-288.37,0.00022644,10]
[365746738,1749870639683,-549.91,0.00022644,10]
[365746739,1749870639693,-458.26,0.00022644,10]
[365746740,1749870639702,-460.0,0.00022654,4]
[365746741,1749870639713,-686.96,0.00022654,4]
[365746742,1749870639722,-460.0,0.00022654,4]
[365746744,1749870639732,-460.0,0.00022654,4]
[365746745,1749870639742,-460.0,0.00022654,4]
[365746746,1749870639751,-460.0,0.00022654,4]
[365746747,1749870639760,-734.18,0.00022654,4]
[365746748,1749870639770,-460.0,0.00022654,4]
[365746750,1749870639780,-460.0,0.00022654,4]
[365746751,1749870639789,-1138.21440078,0.00022728,7]
[365746752,1749870639799,-460.0,0.00022747,2]
[365746753,1749870639808,-498.71,0.00022748,4]
[365746754,1749870639818,-2477.78,0.00022748,4]
[365746755,1749870639827,-644.23,0.00022748,4]
[365746757,1749870639937,-460.0,0.00022748,4]
[365746759,1749870639946,-460.0,0.00022748,4]
[365746761,1749870639956,-623.31,0.00022748,4]
[365746763,1749870639965,-460.0,0.00022748,4]
[365746765,1749870639975,-460.0,0.00022748,4]
[365746767,1749870639985,-1138.21440078,0.00022831,8]
[365746769,1749870639996,-500.0,0.00022845,2]
[365746770,1749870640005,-575.0,0.00022863,2]
[365746771,1749870640015,-575.0,0.00022907,2]
[365746772,1749870640025,-460.0,0.00022928,4]
[365746773,1749870640035,-686.96,0.00022928,4]
[365746774,1749870640044,-460.0,0.00022928,4]
[365746775,1749870640054,-460.0,0.00022928,4]
[365746776,1749870640063,-460.0,0.00022928,4]
[365746777,1749870640073,-460.0,0.00022928,4]
[365746778,1749870640083,-734.18,0.00022928,4]
[365746779,1749870640092,-460.0,0.00022928,4]
[365746780,1749870640102,-460.0,0.00022928,4]
[365746781,1749870640112,-1138.21440078,0.00022934,8]
[365746782,1749870640122,-176.9937618,0.00022978,2]
[365746783,1749870640132,-158.8714084,0.00022978,2]
[365746784,1749870640142,-153.0,0.00022978,2]
[365746785,1749870640152,-573.7859869,0.00022978,2]
[365746786,1749870640163,-2468.2265365,0.00023,2]
[365746788,1749870640204,-531.7734635,0.00023,2]
[365746790,1749870640215,-524.60638755,0.0002301,2]
[365746791,1749870640512,-374.03276725,0.00020751,2]
[365746792,1749870640524,-1212.94581559,0.00020751,2]
[365746793,1749870640566,-324.63413866,0.00020751,2]
[365746794,1749870640576,-2475.39361245,0.0002301,2]
[365746795,1749870640586,-1635.74658303,0.0002302,2]
[365746797,1749870643429,-1364.25341697,0.0002302,2]
[365746798,1749870643439,-460.0,0.00023021,2]
[365746799,1749870643449,-426.25636468,0.00023022,4]
[365746800,1749870643460,-72.45363532,0.00023022,4]
[365746801,1749870643471,-2477.78,0.00023022,4]
[365746802,1749870643480,-644.23,0.00023022,4]
[365746803,1749870643490,-341.54224284,0.00023022,4]
[365746804,1749870643501,-118.45775716,0.00023022,4]
[365746805,1749870643510,-460.0,0.00023022,4]
[365746807,1749870643519,-623.31,0.00023022,4]
[365746808,1749870643528,-460.0,0.00023022,4]
[365746809,1749870643538,-460.0,0.00023022,4]
[365746810,1749870643547,-3000.0,0.0002303,2]
[365746811,1749870643556,-164.48686675,0.00023038,8]
[365746814,1749870646327,-573.046318,0.00022466,2]
[365746815,1749870646338,-973.72753403,0.00023038,8]
[365746816,1749870646347,-3000.0,0.0002304,2]
[365746817,1749870646357,-135.0140331,0.0002305,2]
[365746818,1749870646381,-702.06664328,0.0002305,2]
[365746822,1749871146761,-5000.0,0.00021149,2]
[365746825,1749871225981,5012.94047235,0.0002,10]
[365746826,1749871371146,3087.18,0.0002,30]
[365746827,1749871554404,164.34453687,0.00019049,2]
[365746830,1749871634136,-5000.0,0.00020522,2]
[365746831,1749871634158,-174.71491754,0.0002091,2]
[365746832,1749871634179,-184.09,0.00021011,2]
[365746833,1749871634200,-49.5992222,0.00021149,2]
[365746834,1749871634223,-202.52429791,0.00021594,2]
[365746835,1749871634246,-723.0,0.00021742,2]
[365746836,1749871634272,-1850.47,0.00021743,2]
[365746837,1749871634307,-173.29,0.00021889,2]
[365746838,1749871634328,-300.0,0.00021898,2]
[365746839,1749871634350,-300.0,0.00021898,2]
[365746840,1749871634372,-1268.43719917,0.00021899,2]
[365746841,1749871634394,-464.73192859,0.00021899,4]
[365746842,1749871634418,-460.0,0.00021899,4]
[365746843,1749871634440,-426.13961418,0.00021899,4]
[365746844,1749871634462,-460.0,0.00021899,4]
[365746845,1749871634489,-343.4928705,0.00021899,4]
[365746846,1749871642172,-47.18987938,0.00021899,4]
[365746847,1749871642192,-545.7583,0.00021899,4]
[365746848,1749871642213,-320.0,0.00021899,4]
[365746849,1749871642241,-916.17715777,0.000219,6]
[365746850,1749871642260,-460.3242652,0.00021928,2]
[365746851,1749871642283,-460.0,0.00022003,4]
[365746852,1749871642306,-560.99,0.00022003,4]
[365746853,1749871642326,-460.0,0.00022003,4]
[365746854,1749871642348,-460.0,0.00022003,4]
[365746855,1749871642376,-286.53037763,0.00022003,6]
[365746856,1749871642411,-629.64678012,0.00022003,6]
[365746857,1749871642432,-360.85616516,0.00022006,2]
[365746858,1749871642455,-559.39659519,0.00022104,4]
[365746859,1749871643098,-442.05930958,0.00022104,4]
[365746864,1749871735539,-300.0,0.00021344,2]
[365746865,1749871735560,-15562.652415,0.00021345,2]
[365746866,1749871735582,-5000.0,0.0002168,2]
[365746867,1749871735602,-1826.92,0.00021743,2]
[365746868,1749871735622,-52407.80530746,0.00022,7]
[365746869,1749871735644,-460.0,0.00022003,4]
[365746870,1749871735668,-714.13,0.00022003,4]
[365746871,1749871735690,-460.0,0.00022003,4]
[365746872,1749871735712,-460.0,0.00022003,4]
[365746873,1749871735735,-2128.81,0.00022103,4]
[365746874,1749871735757,-460.0,0.00022103,4]
[365746875,1749871735779,-460.0,0.00022103,4]
[365746876,1749871735802,-460.0,0.00022104,4]
[365746877,1749871735824,-570.51,0.00022104,4]
[365746878,1749871735847,-460.0,0.00022104,4]
[365746879,1749871735868,-460.0,0.00022104,4]
[365746880,1749871735891,-460.0,0.00022104,4]
[365746881,1749871735912,-460.0,0.00022104,4]
[365746882,1749871735934,-460.0,0.00022104,4]
[365746883,1749871735955,-487.00618054,0.00022104,4]
[365746884,1749871735978,-460.0,0.00022104,4]
[365746885,1749871736001,-460.0,0.00022104,4]
[365746886,1749871736024,-460.0,0.00022104,4]
[365746887,1749871736047,-440.0,0.00022106,4]
[365746888,1749871736070,-380.06092932,0.00022106,4]
[365746889,1749871736091,-475.10002775,0.00022106,2]
[365746890,1749871736118,-380.0,0.00022106,4]
[365746891,1749871736139,-370.0,0.00022106,4]
[365746892,1749871736159,-460.0,0.00022106,4]
[365746893,1749871736187,-460.0,0.00022106,4]
[365746894,1749871736208,-483.89665395,0.00022106,4]
[365746895,1749871736233,-460.0,0.00022106,4]
[365746896,1749871736255,-460.0,0.00022106,4]
[365746897,1749871736276,-695.45,0.00022106,4]
[365746898,1749871736298,-460.0,0.00022106,4]
[365746899,1749871736319,-460.0,0.00022106,4]
[365746900,1749871736340,-435.32673048,0.00022106,4]
[365746901,1749871736360,-460.0,0.00022106,4]
[365746902,1749871736380,-460.0,0.00022106,2]
[365746903,1749871736400,-548.38656646,0.00022106,4]
[365746904,1749871736421,-171.7,0.00022107,2]
[365746905,1749871736441,-188.31820889,0.000222,69]
[365746906,1749871736465,-560.99,0.00022277,4]
[365746907,1749871736488,-121.93698015,0.00022277,4]
[365746943,1749871832534,-300.0,0.00021328,2]
[365746944,1749871832544,-1966.3377805,0.00021329,2]
[365746955,1749871838609,-17718.9675767,0.00021329,2]
[365746956,1749871838619,-460.0,0.0002174,2]
[365746957,1749871838767,-1803.66,0.00021741,2]
[365746959,1749871838777,-460.0,0.00022003,4]
[365746961,1749871838788,-460.0,0.00022003,4]
[365746963,1749871838798,-404.32366378,0.00022003,4]
[365746973,1749871839085,-360.04633622,0.00022003,4]
[365746974,1749871839095,-460.0,0.00022003,4]
[365746975,1749871839104,-460.0,0.00022014,2]
[365746976,1749871839113,-3010.20097485,0.00022054,2]
[365746977,1749871839128,-1989.79902515,0.00022054,2]
[365746978,1749871839138,-593.33,0.00022103,4]
[365746979,1749871839147,-460.0,0.00022103,4]
[365746980,1749871839156,-460.0,0.00022103,4]
[365746981,1749871839166,-646.24,0.00022103,4]
[365746982,1749871839175,-460.0,0.00022103,4]
[365746983,1749871839184,-460.0,0.00022103,4]
[365746984,1749871839194,-460.0,0.00022103,4]
[365746985,1749871839203,-460.0,0.00022104,4]
[365746986,1749871839211,-714.13,0.00022277,4]
[365746987,1749871839221,-166.43835197,0.00022277,4]
[365746988,1749871839230,-460.0,0.00022277,4]
[365746989,1749871839239,-460.0,0.00022277,4]
[365746990,1749871839249,-460.0,0.00022277,4]
[365746991,1749871839258,-764.37,0.00022277,4]
[365746992,1749871839267,-460.0,0.00022277,4]
[365746993,1749871839277,-155.0,0.00022277,2]
[365746994,1749871839286,-594.01027538,0.00022288,2]
[365746995,1749871839295,-2128.81,0.00022377,4]
[365746996,1749871839306,-460.0,0.00022377,4]
[365746997,1749871839316,-460.0,0.00022377,4]
[365746998,1749871839326,-593.33,0.00022377,4]
[365746999,1749871839336,-460.0,0.00022377,4]
[365747000,1749871839346,-460.0,0.00022377,4]
[365747001,1749871839356,-646.24,0.00022377,4]
[365747002,1749871839366,-460.0,0.00022377,4]
[365747003,1749871839375,-460.0,0.00022377,4]
[365747004,1749871839385,-460.0,0.00022377,4]
[365747005,1749871839395,-460.0,0.00022378,4]
[365747006,1749871839405,-460.0,0.00022378,4]
[365747007,1749871839415,-460.0,0.00022378,4]
[365747008,1749871839424,-460.0,0.00022378,4]
[365747009,1749871839434,-460.0,0.0002238,4]
[365747010,1749871839444,-460.0,0.0002238,2]
[365747011,1749871839453,-237.03604997,0.00022395,2]
[365747012,1749871839463,-500.0,0.00022409,2]
[365747013,1749871839473,-500.0,0.00022409,2]
[365747014,1749871839482,-500.0,0.00022409,2]
[365747015,1749871839491,-500.0,0.00022409,2]
[365747016,1749871839500,-358.68890692,0.00022409,2]
[365747017,1749871839510,-179.66015798,0.00022409,2]
[365747018,1749871839520,-500.0,0.00022409,2]
[365747019,1749871839530,-500.0,0.00022409,2]
[365747020,1749871839540,-500.0,0.00022409,2]
[365747021,1749871839550,-441.00756367,0.00022409,2]
[365747022,1749871839559,-160.0,0.00022424,2]
[365747023,1749871839568,-160.0,0.00022442,2]
[365747024,1749871839578,-160.0,0.00022442,2]
[365747025,1749871839587,-229.82479369,0.00022442,2]
[365747026,1749871839596,-12533.30537164,0.00022442,2]
[365747027,1749871839606,-160.0,0.00022442,2]
[365747028,1749871839616,-500.0,0.00022466,2]
[365747029,1749871839626,-500.0,0.00022466,2]
[365747030,1749871839636,-500.0,0.00022466,2]
[365747031,1749871839646,-493.47197313,0.00022466,2]
[365747032,1749871839656,-500.0,0.00022466,2]
[365747033,1749871839666,-500.0,0.00022466,2]
[365747034,1749871839676,-500.0,0.00022466,2]
[365747035,1749871839686,-500.0,0.00022466,2]
[365747036,1749871839695,-500.0,0.00022466,2]
[365747037,1749871839704,-500.0,0.00022466,2]
[365747038,1749871839714,-500.0,0.00022466,2]
[365747039,1749871839723,-500.0,0.00022466,2]
[365747040,1749871839732,-500.0,0.00022466,2]
[365747041,1749871839741,-500.0,0.00022466,2]
[365747042,1749871839751,-500.0,0.00022466,2]
[365747043,1749871839760,-500.0,0.00022466,2]
[365747044,1749871839770,-728.0,0.00022497,2]
[365747045,1749871839781,-714.13,0.00022551,4]
[365747046,1749871839790,-460.0,0.00022551,4]
[365747047,1749871839801,-460.0,0.00022551,4]
[365747048,1749871839811,-460.0,0.00022551,4]
[365747049,1749871839820,-764.37,0.00022551,4]
[365747050,1749871839829,-460.0,0.00022551,4]
[365747051,1749871839839,-207.4,0.00022587,2]
[365747052,1749871839848,-2128.81,0.00022651,4]
[365747053,1749871839858,-460.0,0.00022651,4]
[365747054,1749871839868,-460.0,0.00022651,4]
[365747055,1749871839877,-593.33,0.00022651,4]
[365747056,1749871839887,-460.0,0.00022651,4]
[365747057,1749871839896,-646.24,0.00022651,4]
[365747059,1749871839912,-460.0,0.00022651,4]
[365747061,1749871839925,-460.0,0.00022651,4]
[365747062,1749871839938,-150.5165868,0.00022651,4]
[365747063,1749871839951,-460.0,0.00022652,4]
[365747064,1749871839963,-460.0,0.00022652,4]
[365747065,1749871839974,-460.0,0.00022652,4]
[365747066,1749871839986,-460.0,0.00022652,4]
[365747067,1749871839999,-460.0,0.00022654,2]
[365747068,1749871840011,-327.38975948,0.0002272,2]
[365747069,1749871840023,-714.13,0.00022825,4]
[365747070,1749871840036,-460.0,0.00022825,4]
[365747071,1749871840049,-460.0,0.00022825,4]
[365747072,1749871840061,-460.0,0.00022825,4]
[365747073,1749871840074,-764.37,0.00022825,4]